[Event "17th Spilimbergo Open 2019"]
[Site "Spilimbergo"]
[Date "2019.08.10"]
[Round "2.5"]
[White "Szabo, Bence"]
[Black "Brunello, Sabino"]
[Result "0-1"]
[WhiteElo "2355"]
[BlackElo "2556"]
[PlyCount "100"]
[EventDate "2019.08.09"]
[EventType "swiss"]
[EventCountry "ITA"]
[TimeControl "5400+30"]
[WhiteClock "0:03:03"]
[BlackClock "0:01:11"]

1. Nf3 {[%emt 0:00:30]} d5 {[%emt 0:00:30]} 2. c4 {[%emt 0:00:30]} e6 {[%emt 0:00:30]} 3. g3 {[%emt 0:00:30]} Nf6 {[%emt 0:04:30]} 4. Bg2 {[%emt 0:00:30]} Be7 {[%emt 0:00:30]} 5. O-O {[%emt 0:00:30]} O-O {[%emt 0:00:00]} 6. b3 {[%emt 0:00:30]} b6 {[%emt 0:06:00]} 7. Bb2 {[%emt 0:00:30]} Bb7 {[%emt 0:00:30]} 8. e3 {[%emt 0:01:30]} c5 {[%emt 0:00:30]} 9. Nc3 {[%emt 0:02:30]} Qc8 {[%emt 0:02:30]} 10. cxd5 {[%emt 0:08:30]} Nxd5 {[%emt 0:01:30]} 11. Nxd5 {[%emt 0:01:30]} Bxd5 {[%emt 0:00:30]} 12. d4 {[%emt 0:00:30]} Nd7 {[%emt 0:07:30]} 13. Qe2 {[%emt 0:11:30]} Qb7 {[%emt 0:03:30]} 14. Rfd1 {[%emt 0:16:30]} Rfd8 {[%emt 0:01:30]} 15. Ne1 {[%emt 0:02:30]} Bxg2 {[%emt 0:01:30]} 16. Nxg2 {[%emt 0:00:30]} cxd4 {[%emt 0:01:30]} 17. Bxd4 {[%emt 0:00:30]} Bf6 {[%emt 0:09:30]} 18. Bxf6 {[%emt 0:13:30]} Nxf6 {[%emt 0:00:30]} 19. Rxd8+ {[%emt 0:00:30]} Rxd8 {[%emt 0:00:30]} 20. Rd1 {[%emt 0:00:30]} Rc8 {[%emt 0:01:30]} 21. Ne1 {[%emt 0:08:30]} h6 {[%emt 0:01:30]} 22. Rd4 {[%emt 0:10:13]} Rc1 {[%emt 0:09:30]} 23. Rd8+ {[%emt 0:06:14]} Kh7 {[%emt 0:00:30]} 24. Rd1 {[%emt 0:00:31]} Rc7 {[%emt 0:06:30]} 25. Rd4 {[%emt 0:02:23]} g5 {[%emt 0:11:30]} 26. Qf3 {[%emt 0:05:09]} Qxf3 {[%emt 0:03:30]} 27. Nxf3 {[%emt 0:00:04]} Kg7 {[%emt 0:01:30]} 28. Kg2 {[%emt 0:01:18]} Rc1 {[%emt 0:04:59]} 29. Rc4 {[%emt 0:05:47]} Rxc4 {[%emt 0:02:08]} 30. bxc4 {[%emt 0:00:35]} Ne4 {[%emt 0:00:30]} 31. Ne5 {[%emt 0:00:11]} Nc3 {[%emt 0:00:38]} 32. a3 {[%emt 0:00:33]} Nb1 {[%emt 0:00:40]} 33. a4 {[%emt 0:00:16]} Nc3 {[%emt 0:00:15]} 34. a5 {[%emt 0:00:22]} bxa5 {[%emt 0:00:24]} 35. c5 {[%emt 0:00:13]} a4 {[%emt 0:01:50]} 36. c6 {[%emt 0:00:49]} Nd5 {[%emt 0:07:12]} 37. e4 {[%emt 0:00:19]} Ne7 {[%emt 0:03:46]} 38. c7 {[%emt 0:01:04]} a3 {[%emt 0:00:06]} 39. Nc6 {[%emt 0:00:15]} Nc8 {[%emt 0:00:25]} 40. Nb4 {[%emt 0:00:21]} Kf6 {[%emt 0:02:11]} 41. f4 {[%emt 0:00:19]} gxf4 {[%emt 0:00:06]} 42. gxf4 {[%emt 0:00:04]} Ke7 {[%emt 0:01:44]} 43. Kg3 {[%emt 0:00:16]} Kd7 {[%emt 0:01:23]} 44. Kh4 {[%emt 0:00:11]} Ne7 {[%emt 0:01:01]} 45. Kh5 {[%emt 0:01:47]} Ng8 {[%emt 0:00:10]} 46. f5 {[%emt 0:00:19]} exf5 {[%emt 0:00:42]} 47. exf5 {[%emt 0:00:17]} Kxc7 {[%emt 0:00:17]} 48. Kg4 {[%emt 0:00:34]} Kd6 {[%emt 0:00:12]} 49. Kf4 {[%emt 0:00:21]} Nf6 {[%emt 0:01:18]} 50. Na2 {[%emt 0:00:34]} Kd5 0-1

[Event "17th Spilimbergo Open 2019"]
[Site "Spilimbergo"]
[Date "2019.08.10"]
[Round "2.6"]
[White "Palac, Mladen"]
[Black "Percivaldi, Martin"]
[Result "0-1"]
[WhiteElo "2551"]
[BlackElo "2391"]
[PlyCount "93"]
[EventDate "2019.08.09"]
[EventType "swiss"]
[EventCountry "ITA"]
[TimeControl "5400+30"]
[WhiteClock "0:16:43"]
[BlackClock "0:02:52"]

1. e4 {[%emt 0:00:30]} e5 {[%emt 0:00:30]} 2. Nf3 {[%emt 0:00:30]} Nc6 {[%emt 0:00:00]} 3. Bc4 {[%emt 0:00:30]} Nf6 {[%emt 0:00:00]} 4. d3 {[%emt 0:00:00]} Be7 {[%emt 0:00:30]} 5. O-O {[%emt 0:00:00]} O-O {[%emt 0:01:30]} 6. Re1 {[%emt 0:00:30]} d6 {[%emt 0:00:00]} 7. a3 {[%emt 0:00:00]} h6 {[%emt 0:01:00]} 8. h3 {[%emt 0:04:00]} Be6 {[%emt 0:01:30]} 9. Nbd2 {[%emt 0:01:30]} Qd7 {[%emt 0:11:30]} 10. b4 {[%emt 0:00:30]} a6 {[%emt 0:04:30]} 11. Bb2 {[%emt 0:03:30]} Rfe8 {[%emt 0:00:30]} 12. Bb3 {[%emt 0:02:30]} Bxb3 {[%emt 0:05:30]} 13. Nxb3 {[%emt 0:00:30]} Bf8 {[%emt 0:00:30]} 14. c4 {[%emt 0:00:30]} Rad8 {[%emt 0:10:30]} 15. Qc2 {[%emt 0:04:30]} Ne7 {[%emt 0:00:30]} 16. d4 {[%emt 0:00:30]} Ng6 {[%emt 0:00:30]} 17. Rad1 {[%emt 0:02:30]} Qe6 {[%emt 0:05:30]} 18. c5 {[%emt 0:06:30]} Nh5 {[%emt 0:01:30]} 19. Na5 {[%emt 0:06:30]} Nhf4 {[%emt 0:04:30]} 20. Re3 {[%emt 0:16:30]} dxc5 {[%emt 0:12:30]} 21. d5 {[%emt 0:02:30]} Qc8 {[%emt 0:00:30]} 22. bxc5 {[%emt 0:00:30]} Nxg2 {[%emt 0:00:30]} 23. Kxg2 {[%emt 0:03:30]} Nf4+ {[%emt 0:00:30]} 24. Kg1 {[%emt 0:11:30]} Bxc5 {[%emt 0:01:30]} 25. Nxe5 {[%emt 0:17:30]} Bxe3 {[%emt 0:01:30]} 26. fxe3 {[%emt 0:00:30]} Nxh3+ {[%emt 0:00:30]} 27. Kh2 {[%emt 0:00:18]} Ng5 {[%emt 0:02:30]} 28. Qg2 {[%emt 0:00:03]} f6 {[%emt 0:00:00]} 29. Nf3 {[%emt 0:02:43]} Rxe4 {[%emt 0:03:00]} 30. Nxg5 {[%emt 0:00:06]} Rg4 {[%emt 0:00:00]} 31. Qf3 {[%emt 0:04:14]} hxg5 {[%emt 0:01:00]} 32. Rd4 {[%emt 0:00:00]} Rxd4 {[%emt 0:05:30]} 33. Bxd4 {[%emt 0:00:04]} Qd7 {[%emt 0:02:30]} 34. Nxb7 {[%emt 0:01:02]} Qxd5 {[%emt 0:00:30]} 35. Kg3 {[%emt 0:00:23]} Qxf3+ {[%emt 0:04:36]} 36. Kxf3 {[%emt 0:00:02]} Rb8 {[%emt 0:00:24]} 37. Nc5 {[%emt 0:00:01]} Kf7 {[%emt 0:00:39]} 38. Nxa6 {[%emt 0:02:04]} Ra8 {[%emt 0:00:58]} 39. Nxc7 {[%emt 0:00:02]} Rxa3 {[%emt 0:00:12]} 40. Nb5 {[%emt 0:00:04]} Rb3 {[%emt 0:01:10]} 41. Nc3 {[%emt 0:00:27]} Ke6 {[%emt 0:01:11]} 42. Ne2 {[%emt 0:00:18]} Rb8 {[%emt 0:00:52]} 43. Bc3 {[%emt 0:01:14]} g6 {[%emt 0:00:42]} 44. Nd4+ {[%emt 0:07:31]} Kd5 {[%emt 0:02:00]} 45. Ne2 {[%emt 0:00:51]} Ke6 {[%emt 0:00:32]} 46. Nd4+ {[%emt 0:00:41]} Kf7 {[%emt 0:00:01]} 47. Ne2 0-1

[Event "17th Spilimbergo Open 2019"]
[Site "Spilimbergo"]
[Date "2019.08.10"]
[Round "2.7"]
[White "Derakhshani, Borna"]
[Black "Dragnev, Valentin"]
[Result "0-1"]
[WhiteElo "2323"]
[BlackElo "2535"]
[PlyCount "110"]
[EventDate "2019.08.09"]
[EventType "swiss"]
[EventCountry "ITA"]
[TimeControl "5400+30"]
[WhiteClock "0:04:07"]
[BlackClock "0:08:38"]

1. Nf3 {[%emt 0:00:30]} d5 {[%emt 0:01:30]} 2. e3 {[%emt 0:00:30]} Nf6 {[%emt 0:00:30]} 3. b3 {[%emt 0:00:00]} g6 {[%emt 0:04:30]} 4. Bb2 {[%emt 0:00:00]} Bg7 {[%emt 0:00:30]} 5. c4 {[%emt 0:00:30]} e6 {[%emt 0:02:30]} 6. Be2 {[%emt 0:02:30]} O-O {[%emt 0:00:00]} 7. O-O {[%emt 0:01:30]} b6 {[%emt 0:00:00]} 8. cxd5 {[%emt 0:01:30]} exd5 {[%emt 0:00:30]} 9. d4 {[%emt 0:00:30]} Bb7 {[%emt 0:01:30]} 10. Nc3 {[%emt 0:00:30]} Nbd7 {[%emt 0:01:30]} 11. Rc1 {[%emt 0:00:30]} Qe7 {[%emt 0:07:30]} 12. Nb5 {[%emt 0:14:30]} c5 {[%emt 0:00:30]} 13. Ba3 {[%emt 0:02:30]} Rfd8 {[%emt 0:13:30]} 14. Qe1 {[%emt 0:05:30]} Ne4 {[%emt 0:08:30]} 15. Nc3 {[%emt 0:04:30]} Rac8 {[%emt 0:02:30]} 16. Na4 {[%emt 0:05:30]} Bc6 {[%emt 0:14:30]} 17. dxc5 {[%emt 0:06:30]} Bxa4 {[%emt 0:00:30]} 18. bxa4 {[%emt 0:02:30]} bxc5 {[%emt 0:00:00]} 19. Qa5 {[%emt 0:03:30]} Qf6 {[%emt 0:07:00]} 20. Ba6 {[%emt 0:11:30]} Rb8 {[%emt 0:02:30]} 21. Bd3 {[%emt 0:02:30]} Qb6 {[%emt 0:01:30]} 22. Qe1 {[%emt 0:00:30]} Qe6 {[%emt 0:03:30]} 23. Bb5 {[%emt 0:03:30]} c4 {[%emt 0:04:30]} 24. Nd4 {[%emt 0:00:30]} Bxd4 {[%emt 0:01:30]} 25. exd4 {[%emt 0:00:30]} a6 {[%emt 0:01:30]} 26. Bxd7 {[%emt 0:00:30]} Qxd7 {[%emt 0:00:30]} 27. Qa5 {[%emt 0:05:30]} Qc6 {[%emt 0:00:30]} 28. f3 {[%emt 0:00:30]} Nd6 {[%emt 0:01:06]} 29. Rfe1 {[%emt 0:04:30]} Nf5 {[%emt 0:01:26]} 30. Bc5 {[%emt 0:02:12]} Re8 {[%emt 0:00:29]} 31. Qd2 {[%emt 0:03:17]} Qxa4 {[%emt 0:01:13]} 32. g4 {[%emt 0:00:27]} Ng7 {[%emt 0:00:57]} 33. Bd6 {[%emt 0:01:58]} Rxe1+ {[%emt 0:02:10]} 34. Rxe1 {[%emt 0:00:14]} Re8 {[%emt 0:00:02]} 35. Be5 {[%emt 0:01:01]} Qc6 {[%emt 0:00:36]} 36. Rb1 {[%emt 0:05:46]} f6 {[%emt 0:01:15]} 37. Bg3 {[%emt 0:00:01]} c3 {[%emt 0:06:14]} 38. Qd3 {[%emt 0:01:46]} Ne6 {[%emt 0:03:14]} 39. Rc1 {[%emt 0:00:44]} Rc8 {[%emt 0:00:05]} 40. Rc2 {[%emt 0:01:50]} Qc4 {[%emt 0:02:19]} 41. Qxc4 {[%emt 0:00:43]} Rxc4 {[%emt 0:00:14]} 42. Bf2 {[%emt 0:00:08]} Nxd4 {[%emt 0:00:24]} 43. Bxd4 {[%emt 0:00:05]} Rxd4 {[%emt 0:00:05]} 44. Rxc3 {[%emt 0:00:03]} Rd1+ {[%emt 0:00:03]} 45. Kf2 {[%emt 0:00:15]} Rd2+ {[%emt 0:00:05]} 46. Kg3 {[%emt 0:00:05]} Rxa2 {[%emt 0:00:37]} 47. Rc5 {[%emt 0:00:39]} d4 {[%emt 0:00:28]} 48. Rd5 {[%emt 0:00:03]} Ra4 {[%emt 0:00:10]} 49. Rd7 {[%emt 0:00:19]} a5 {[%emt 0:01:49]} 50. Kf4 {[%emt 0:00:57]} d3+ {[%emt 0:01:42]} 51. Ke3 {[%emt 0:00:16]} Ra3 {[%emt 0:00:19]} 52. Ra7 {[%emt 0:00:16]} d2+ {[%emt 0:01:46]} 53. Kxd2 {[%emt 0:01:25]} Rxf3 {[%emt 0:00:04]} 54. Ra6 {[%emt 0:00:29]} Kg7 {[%emt 0:00:31]} 55. h4 {[%emt 0:00:23]} Rg3 0-1

[Event "17th Spilimbergo Open 2019"]
[Site "Spilimbergo"]
[Date "2019.08.10"]
[Round "2.8"]
[White "Petkov, Momchil"]
[Black "Vetoshko, Volodymyr"]
[Result "1/2-1/2"]
[WhiteElo "2312"]
[BlackElo "2495"]
[PlyCount "97"]
[EventDate "2019.08.09"]
[EventType "swiss"]
[EventCountry "ITA"]
[TimeControl "5400+30"]
[BlackClock "0:00:21"]

1. e4 {[%emt 0:00:30]} c5 {[%emt 0:00:30]} 2. Nf3 {[%emt 0:00:00]} Nc6 {[%emt 0:00:30]} 3. c4 {[%emt 0:01:00]} Nf6 {[%emt 0:01:30]} 4. Nc3 {[%emt 0:00:30]} e6 {[%emt 0:02:30]} 5. d4 {[%emt 0:04:30]} cxd4 {[%emt 0:03:30]} 6. Nxd4 {[%emt 0:00:30]} Bb4 {[%emt 0:01:30]} 7. Nxc6 {[%emt 0:00:00]} bxc6 {[%emt 0:01:30]} 8. Bd3 {[%emt 0:00:00]} e5 {[%emt 0:02:30]} 9. O-O {[%emt 0:00:30]} O-O {[%emt 0:01:30]} 10. Qc2 {[%emt 0:05:30]} Be7 {[%emt 0:06:30]} 11. Kh1 {[%emt 0:09:30]} d6 {[%emt 0:06:30]} 12. f4 {[%emt 0:05:30]} exf4 {[%emt 0:06:30]} 13. Bxf4 {[%emt 0:00:30]} Ng4 {[%emt 0:00:00]} 14. c5 {[%emt 0:06:30]} Bg5 {[%emt 0:14:00]} 15. Bxd6 {[%emt 0:13:30]} Ne3 {[%emt 0:00:30]} 16. Qf2 {[%emt 0:01:30]} Nxf1 {[%emt 0:05:30]} 17. Rxf1 {[%emt 0:00:30]} Be7 {[%emt 0:01:30]} 18. e5 {[%emt 0:00:00]} Bxd6 {[%emt 0:04:30]} 19. cxd6 {[%emt 0:02:00]} Qg5 {[%emt 0:02:30]} 20. Qd4 {[%emt 0:05:30]} Be6 {[%emt 0:03:30]} 21. Ne4 {[%emt 0:11:30]} Qh6 {[%emt 0:00:30]} 22. Nc5 {[%emt 0:02:30]} Bd5 {[%emt 0:12:30]} 23. Bc4 {[%emt 0:03:30]} Bxc4 {[%emt 0:03:38]} 24. Qxc4 {[%emt 0:00:30]} Qh5 {[%emt 0:00:34]} 25. Nd7 {[%emt 0:00:30]} Rfe8 {[%emt 0:01:38]} 26. Qxc6 {[%emt 0:01:30]} Qe2 {[%emt 0:05:10]} 27. Rc1 {[%emt 0:07:47]} Rad8 {[%emt 0:03:37]} 28. h3 {[%emt 0:02:58]} Qxb2 {[%emt 0:00:29]} 29. Rf1 {[%emt 0:02:57]} Qxa2 {[%emt 0:03:33]} 30. Qb7 {[%emt 0:05:31]} Qe6 {[%emt 0:01:38]} 31. Nc5 {[%emt 0:00:50]} Qc4 {[%emt 0:00:19]} 32. Rf5 {[%emt 0:05:35]} Qc1+ {[%emt 0:02:35]} 33. Kh2 {[%emt 0:00:07]} Qxc5 {[%emt 0:00:37]} 34. Qxf7+ {[%emt 0:00:31]} Kh8 {[%emt 0:00:01]} 35. Rg5 {[%emt 0:00:13]} Rg8 {[%emt 0:00:27]} 36. Rh5 {[%emt 0:00:28]} Qe3 {[%emt 0:01:46]} 37. d7 {[%emt 0:02:01]} Rgf8 {[%emt 0:01:10]} 38. Qe7 {[%emt 0:01:16]} Qf4+ {[%emt 0:00:30]} 39. Kh1 {[%emt 0:00:01]} Qf1+ {[%emt 0:01:13]} 40. Kh2 {[%emt 0:00:00]} Qf4+ {[%emt 0:00:00]} 41. Kh1 {[%emt 0:00:03]} Qf7 {[%emt 0:00:00]} 42. Qxf7 {[%emt 0:00:41]} Rxf7 {[%emt 0:00:12]} 43. e6 {[%emt 0:00:14]} Rfxd7 {[%emt 0:00:44]} 44. exd7 {[%emt 0:00:30]} Rxd7 {[%emt 0:00:42]} 45. Rc5 {[%emt 0:00:30]} Kg8 {[%emt 0:01:14]} 46. Rc6 {[%emt 0:00:30]} Kf8 {[%emt 0:00:33]} 47. Kh2 {[%emt 0:00:35]} Rf7 {[%emt 0:00:09]} 48. h4 {[%emt 0:00:45]} Ke7 {[%emt 0:00:30]} 49. g4 {[%emt 0:00:00]} 1/2-1/2

[Event "17th Spilimbergo Open 2019"]
[Site "Spilimbergo"]
[Date "2019.08.10"]
[Round "2.9"]
[White "Miron, Lucian-Costin"]
[Black "Fataliyeva, Ulviyya"]
[Result "1/2-1/2"]
[WhiteElo "2494"]
[BlackElo "2357"]
[PlyCount "96"]
[EventDate "2019.08.09"]
[EventType "swiss"]
[EventCountry "ITA"]
[TimeControl "5400+30"]
[WhiteClock "0:01:20"]
[BlackClock "0:02:18"]

1. Nf3 {[%emt 0:06:30]} d5 {[%emt 0:00:30]} 2. d4 {[%emt 0:00:30]} Nf6 {[%emt 0:00:30]} 3. g3 {[%emt 0:01:30]} Bf5 {[%emt 0:01:30]} 4. c4 {[%emt 0:00:30]} c6 {[%emt 0:03:30]} 5. Nc3 {[%emt 0:00:30]} e6 {[%emt 0:01:30]} 6. Nh4 {[%emt 0:00:30]} Be4 {[%emt 0:00:00]} 7. f3 {[%emt 0:02:30]} Bg6 {[%emt 0:01:00]} 8. Qb3 {[%emt 0:01:30]} Qd7 {[%emt 0:00:30]} 9. e3 {[%emt 0:08:30]} Bd6 {[%emt 0:02:30]} 10. Bd2 {[%emt 0:06:30]} O-O {[%emt 0:05:30]} 11. Nxg6 {[%emt 0:01:30]} hxg6 {[%emt 0:00:30]} 12. O-O-O {[%emt 0:01:30]} dxc4 {[%emt 0:01:30]} 13. Bxc4 {[%emt 0:00:30]} b5 {[%emt 0:00:30]} 14. Be2 {[%emt 0:03:30]} a5 {[%emt 0:01:30]} 15. e4 {[%emt 0:06:30]} a4 {[%emt 0:04:30]} 16. Qc2 {[%emt 0:00:30]} Be7 {[%emt 0:00:00]} 17. Be3 {[%emt 0:06:30]} Qa7 {[%emt 0:04:00]} 18. e5 {[%emt 0:11:30]} Nd5 {[%emt 0:01:30]} 19. Nxd5 {[%emt 0:00:30]} cxd5 {[%emt 0:00:30]} 20. Kb1 {[%emt 0:02:30]} Nd7 {[%emt 0:12:30]} 21. Qd2 {[%emt 0:09:30]} Rfb8 {[%emt 0:04:30]} 22. Rc1 {[%emt 0:06:30]} Rb7 {[%emt 0:09:30]} 23. h4 {[%emt 0:06:30]} Nb6 {[%emt 0:00:00]} 24. Bd3 {[%emt 0:01:51]} Nc4 {[%emt 0:07:00]} 25. Qe2 {[%emt 0:00:09]} Rc8 {[%emt 0:02:30]} 26. h5 {[%emt 0:01:53]} g5 {[%emt 0:00:30]} 27. f4 {[%emt 0:02:55]} Rbc7 {[%emt 0:10:30]} 28. fxg5 {[%emt 0:06:22]} a3 {[%emt 0:02:30]} 29. b3 {[%emt 0:03:42]} Nxe3 {[%emt 0:19:28]} 30. Qxe3 {[%emt 0:00:30]} Rxc1+ {[%emt 0:00:40]} 31. Rxc1 {[%emt 0:00:30]} Rxc1+ {[%emt 0:00:38]} 32. Kxc1 {[%emt 0:00:30]} Bd8 {[%emt 0:00:34]} 33. Bxb5 {[%emt 0:00:30]} Bb6 {[%emt 0:02:04]} 34. Qc3 {[%emt 0:00:18]} Bxd4 {[%emt 0:00:29]} 35. Qc8+ {[%emt 0:00:12]} Kh7 {[%emt 0:00:03]} 36. Bd3+ {[%emt 0:00:47]} g6 {[%emt 0:00:03]} 37. hxg6+ {[%emt 0:00:42]} fxg6 {[%emt 0:00:04]} 38. Qxe6 {[%emt 0:00:15]} Bb2+ {[%emt 0:00:33]} 39. Kd1 {[%emt 0:01:02]} Qg1+ {[%emt 0:00:12]} 40. Ke2 {[%emt 0:00:22]} Qg2+ {[%emt 0:00:20]} 41. Kd1 {[%emt 0:00:01]} Qf3+ {[%emt 0:00:50]} 42. Kd2 {[%emt 0:00:19]} Qf2+ {[%emt 0:02:14]} 43. Kd1 {[%emt 0:00:56]} Qf3+ {[%emt 0:00:34]} 44. Kd2 {[%emt 0:00:09]} Qf2+ {[%emt 0:00:09]} 45. Be2 {[%emt 0:00:18]} Qd4+ {[%emt 0:01:15]} 46. Bd3 {[%emt 0:00:24]} Qf2+ {[%emt 0:00:41]} 47. Be2 {[%emt 0:00:18]} Qd4+ {[%emt 0:00:19]} 48. Bd3 {[%emt 0:00:17]} Qf2+ 1/2-1/2

[Event "17th Spilimbergo Open 2019"]
[Site "Spilimbergo"]
[Date "2019.08.10"]
[Round "2.10"]
[White "Blom, Vincent"]
[Black "Castellanos Rodriguez, Renier"]
[Result "1/2-1/2"]
[WhiteElo "2303"]
[BlackElo "2493"]
[PlyCount "53"]
[EventDate "2019.08.09"]
[EventType "swiss"]
[EventCountry "ITA"]
[TimeControl "5400+30"]
[WhiteClock "0:06:04"]
[BlackClock "0:04:17"]

1. c4 {[%emt 0:06:30]} e5 {[%emt 0:01:30]} 2. g3 {[%emt 0:00:30]} Nc6 {[%emt 0:00:30]} 3. Bg2 {[%emt 0:00:00]} Bc5 {[%emt 0:00:30]} 4. Nc3 {[%emt 0:01:00]} a6 {[%emt 0:00:30]} 5. e3 {[%emt 0:02:30]} d6 {[%emt 0:00:30]} 6. Nge2 {[%emt 0:00:30]} Ba7 {[%emt 0:01:30]} 7. d4 {[%emt 0:14:30]} Nge7 {[%emt 0:05:30]} 8. O-O {[%emt 0:11:30]} O-O {[%emt 0:06:30]} 9. d5 {[%emt 0:02:30]} Nb8 {[%emt 0:00:30]} 10. h3 {[%emt 0:00:30]} Nd7 {[%emt 0:04:30]} 11. Kh2 {[%emt 0:00:30]} Nf6 {[%emt 0:05:30]} 12. f4 {[%emt 0:10:30]} exf4 {[%emt 0:02:30]} 13. gxf4 {[%emt 0:00:30]} Ng6 {[%emt 0:19:30]} 14. Qd3 {[%emt 0:06:30]} Re8 {[%emt 0:06:30]} 15. b4 {[%emt 0:09:30]} Bd7 {[%emt 0:05:30]} 16. e4 {[%emt 0:03:30]} c6 {[%emt 0:05:30]} 17. dxc6 {[%emt 0:07:35]} Bxc6 {[%emt 0:00:30]} 18. b5 {[%emt 0:00:40]} Bd7 {[%emt 0:03:30]} 19. bxa6 {[%emt 0:05:46]} bxa6 {[%emt 0:01:30]} 20. Qxd6 {[%emt 0:04:28]} Nh4 {[%emt 0:12:22]} 21. Bh1 {[%emt 0:01:53]} Be6 {[%emt 0:02:30]} 22. Qxd8 {[%emt 0:06:03]} Raxd8 {[%emt 0:00:17]} 23. f5 {[%emt 0:00:38]} Bxc4 {[%emt 0:01:23]} 24. Bg5 {[%emt 0:00:21]} Bb8+ {[%emt 0:01:40]} 25. Kg1 {[%emt 0:00:16]} Ba7+ {[%emt 0:01:29]} 26. Kh2 {[%emt 0:00:03]} Bb8+ {[%emt 0:04:45]} 27. Kg1 1/2-1/2

[Event "17th Spilimbergo Open 2019"]
[Site "Spilimbergo"]
[Date "2019.08.10"]
[Round "2.11"]
[White "Henderson de La Fuente, Lance"]
[Black "Bratkovic, Jakob"]
[Result "1-0"]
[WhiteElo "2487"]
[BlackElo "2350"]
[PlyCount "75"]
[EventDate "2019.08.09"]
[EventType "swiss"]
[EventCountry "ITA"]
[TimeControl "5400+30"]
[WhiteClock "0:07:18"]
[BlackClock "0:34:00"]

1. e4 {[%emt 0:00:30]} c5 {[%emt 0:02:30]} 2. Nf3 {[%emt 0:00:00]} Nc6 {[%emt 0:00:30]} 3. d4 {[%emt 0:00:00]} cxd4 {[%emt 0:00:00]} 4. Nxd4 {[%emt 0:00:30]} e5 {[%emt 0:00:00]} 5. Nb5 {[%emt 0:00:30]} d6 {[%emt 0:00:00]} 6. c4 {[%emt 0:02:30]} Be7 {[%emt 0:01:00]} 7. N1c3 {[%emt 0:00:30]} a6 {[%emt 0:00:00]} 8. Na3 {[%emt 0:00:00]} Be6 {[%emt 0:00:00]} 9. Bd3 {[%emt 0:02:00]} Bg5 {[%emt 0:06:30]} 10. O-O {[%emt 0:00:30]} Bxc1 {[%emt 0:00:30]} 11. Rxc1 {[%emt 0:00:30]} Nge7 {[%emt 0:01:30]} 12. Nc2 {[%emt 0:01:30]} O-O {[%emt 0:01:30]} 13. Qd2 {[%emt 0:01:30]} f5 {[%emt 0:19:30]} 14. Rfd1 {[%emt 0:03:30]} Qe8 {[%emt 0:06:30]} 15. Nd5 {[%emt 0:10:30]} Rc8 {[%emt 0:02:30]} 16. b3 {[%emt 0:08:30]} Qf7 {[%emt 0:08:30]} 17. f3 {[%emt 0:06:30]} Kh8 {[%emt 0:08:30]} 18. Nxe7 {[%emt 0:03:30]} Nxe7 {[%emt 0:00:30]} 19. exf5 {[%emt 0:03:30]} Bxf5 {[%emt 0:00:30]} 20. Ne3 {[%emt 0:00:30]} Bxd3 {[%emt 0:09:30]} 21. Qxd3 {[%emt 0:00:30]} Rcd8 {[%emt 0:02:30]} 22. Rd2 {[%emt 0:00:30]} Nc6 {[%emt 0:01:30]} 23. Rcd1 {[%emt 0:01:30]} Nd4 {[%emt 0:01:30]} 24. Nc2 {[%emt 0:00:30]} Ne6 {[%emt 0:00:30]} 25. Qc3 {[%emt 0:06:30]} Nf4 {[%emt 0:06:34]} 26. Kh1 {[%emt 0:02:30]} e4 {[%emt 0:04:46]} 27. fxe4 {[%emt 0:07:30]} Ne2 {[%emt 0:02:33]} 28. Qf3 {[%emt 0:00:30]} Nc3 {[%emt 0:00:15]} 29. Re1 {[%emt 0:00:30]} Nxa2 {[%emt 0:02:39]} 30. Qxf7 {[%emt 0:01:30]} Rxf7 {[%emt 0:00:03]} 31. h3 {[%emt 0:00:30]} Kg8 {[%emt 0:06:29]} 32. e5 {[%emt 0:01:30]} Rfd7 {[%emt 0:00:03]} 33. e6 {[%emt 0:01:30]} Re7 {[%emt 0:00:05]} 34. Nd4 {[%emt 0:00:30]} Nb4 {[%emt 0:00:15]} 35. Nf5 {[%emt 0:00:30]} Ree8 {[%emt 0:00:15]} 36. e7 {[%emt 0:00:30]} Rd7 {[%emt 0:01:08]} 37. Rxd6 {[%emt 0:00:30]} Rc7 {[%emt 0:00:07]} 38. Rd8 1-0

[Event "17th Spilimbergo Open 2019"]
[Site "Spilimbergo"]
[Date "2019.08.10"]
[Round "2.12"]
[White "Aleksic, Nenad"]
[Black "Yankelevich, Lev"]
[Result "1/2-1/2"]
[WhiteElo "2297"]
[BlackElo "2480"]
[PlyCount "109"]
[EventDate "2019.08.09"]
[EventType "swiss"]
[EventCountry "ITA"]
[TimeControl "5400+30"]
[WhiteClock "0:02:18"]
[BlackClock "0:01:45"]

1. e4 {[%emt 0:03:30]} e5 {[%emt 0:00:30]} 2. Nf3 {[%emt 0:00:30]} Nc6 {[%emt 0:00:00]} 3. d3 {[%emt 0:00:30]} g6 {[%emt 0:00:00]} 4. c3 {[%emt 0:00:00]} Bg7 {[%emt 0:02:30]} 5. Be2 {[%emt 0:00:00]} Nge7 {[%emt 0:00:30]} 6. O-O {[%emt 0:00:00]} O-O {[%emt 0:05:30]} 7. b4 {[%emt 0:03:00]} a6 {[%emt 0:02:30]} 8. Bb2 {[%emt 0:02:30]} b6 {[%emt 0:06:30]} 9. a3 {[%emt 0:02:30]} d5 {[%emt 0:01:30]} 10. Nbd2 {[%emt 0:01:30]} h6 {[%emt 0:03:30]} 11. Re1 {[%emt 0:08:30]} g5 {[%emt 0:05:30]} 12. Nf1 {[%emt 0:02:30]} f5 {[%emt 0:00:00]} 13. exd5 {[%emt 0:29:30]} Nxd5 {[%emt 0:01:00]} 14. c4 {[%emt 0:03:30]} Nf4 {[%emt 0:00:30]} 15. b5 {[%emt 0:00:00]} Nd4 {[%emt 0:33:30]} 16. Nxd4 {[%emt 0:02:00]} exd4 {[%emt 0:00:00]} 17. Bf3 {[%emt 0:01:30]} Rb8 {[%emt 0:02:00]} 18. Bc1 {[%emt 0:02:30]} Ng6 {[%emt 0:00:30]} 19. a4 {[%emt 0:01:30]} Bb7 {[%emt 0:06:30]} 20. Bxb7 {[%emt 0:05:30]} Rxb7 {[%emt 0:00:30]} 21. Ba3 {[%emt 0:00:00]} Rf7 {[%emt 0:00:30]} 22. Ra2 {[%emt 0:02:00]} axb5 {[%emt 0:00:30]} 23. Rae2 {[%emt 0:00:30]} Kh7 {[%emt 0:00:30]} 24. axb5 {[%emt 0:00:30]} Qa8 {[%emt 0:01:30]} 25. Bb4 {[%emt 0:00:30]} Nf4 {[%emt 0:00:30]} 26. Rb2 {[%emt 0:02:30]} Ra7 {[%emt 0:00:30]} 27. f3 {[%emt 0:00:30]} Ra2 {[%emt 0:00:30]} 28. Rd2 {[%emt 0:02:30]} Rxd2 {[%emt 0:01:30]} 29. Qxd2 {[%emt 0:00:30]} Qa4 {[%emt 0:00:30]} 30. Rb1 {[%emt 0:02:30]} Rf6 {[%emt 0:01:30]} 31. Ng3 {[%emt 0:02:30]} Re6 {[%emt 0:00:30]} 32. Re1 {[%emt 0:01:42]} Rxe1+ {[%emt 0:05:33]} 33. Qxe1 {[%emt 0:01:06]} Qc2 {[%emt 0:01:12]} 34. Bd2 {[%emt 0:01:07]} Nxd3 {[%emt 0:01:47]} 35. Qe6 {[%emt 0:00:48]} Qb1+ {[%emt 0:00:52]} 36. Nf1 {[%emt 0:00:15]} Nf4 {[%emt 0:04:48]} 37. Qf7 {[%emt 0:01:18]} Ne2+ {[%emt 0:01:36]} 38. Kf2 {[%emt 0:00:05]} Qd3 {[%emt 0:00:03]} 39. Bxg5 {[%emt 0:01:06]} Qc2 {[%emt 0:08:06]} 40. Bd2 {[%emt 0:00:52]} Nc3 {[%emt 0:00:10]} 41. Kg3 {[%emt 0:04:32]} Ne2+ {[%emt 0:02:47]} 42. Kh4 {[%emt 0:02:12]} f4 {[%emt 0:00:01]} 43. Kh5 {[%emt 0:05:28]} Qb1 {[%emt 0:00:58]} 44. Qe6 {[%emt 0:01:55]} Qd3 {[%emt 0:00:45]} 45. Qf7 {[%emt 0:00:06]} Qc2 {[%emt 0:01:25]} 46. Qe6 {[%emt 0:01:10]} Nc3 {[%emt 0:00:38]} 47. Qf7 {[%emt 0:02:21]} Ne2 {[%emt 0:00:41]} 48. Qe6 {[%emt 0:00:20]} Nc3 {[%emt 0:00:08]} 49. Qf7 {[%emt 0:00:13]} Qd3 {[%emt 0:00:52]} 50. Bxf4 {[%emt 0:01:08]} Qe2 {[%emt 0:00:19]} 51. Ng3 {[%emt 0:01:13]} Qxg2 {[%emt 0:00:16]} 52. Qg6+ {[%emt 0:00:32]} Kh8 {[%emt 0:00:10]} 53. Qe8+ {[%emt 0:00:10]} Kh7 {[%emt 0:00:03]} 54. Qg6+ {[%emt 0:00:06]} Kh8 {[%emt 0:00:02]} 55. Qe8+ 1/2-1/2